lending/lending_fUSD_20240926
["ID","MTS","AMOUNT","RATE_DAILY","PERIOD"]
[339224757,1727374232740,-161.38256954,0.0001207,2]
[339224758,1727374232749,-180.0,0.00012074,2]
[339224759,1727374232758,-161.38256954,0.00012083,2]
[339224760,1727374232769,-161.38256954,0.00012096,2]
[339224761,1727374232778,-150.0,0.00012098,2]
[339224762,1727374232788,-161.38256954,0.00012109,2]
[339224763,1727374232797,-150.0,0.0001211,2]
[339224764,1727374232808,-161.38256954,0.00012122,2]
[339224765,1727374232818,-160.868264,0.00012126,2]
[339224766,1727374232827,-193.783932,0.00012126,2]
[339224767,1727374232837,-150.0,0.00012128,2]
[339224768,1727374232847,-161.38256954,0.00012135,2]
[339224769,1727374232861,-161.38256954,0.00012148,2]
[339224770,1727374232870,-150.0,0.00012158,2]
[339224771,1727374232880,-161.38256954,0.00012161,2]
[339224772,1727374232889,-161.38256954,0.00012174,2]
[339224773,1727374232899,-161.38256954,0.00012187,2]
[339224774,1727374232908,-150.0,0.00012188,2]
[339224775,1727374232919,-428.31,0.00012192,2]
[339224776,1727374232929,-150.0,0.00012192,2]
[339224777,1727374232938,-150.0,0.00012192,2]
[339224778,1727374232947,-150.0,0.00012192,2]
[339224779,1727374232957,-150.0,0.00012192,2]
[339224780,1727374232967,-150.0,0.00012192,2]
[339224781,1727374232977,-150.0,0.00012192,2]
[339224782,1727374232986,-150.0,0.00012192,2]
[339224783,1727374232996,-161.38256954,0.000122,2]
[339224784,1727374233006,-161.38256954,0.00012213,2]
[339224785,1727374233015,-150.0,0.00012218,2]
[339224786,1727374233024,-161.38256954,0.00012226,2]
[339224787,1727374233034,-161.38256954,0.00012239,2]
[339224788,1727374233043,-150.0,0.00012248,2]
[339224789,1727374233053,-161.38256954,0.00012252,2]
[339224790,1727374233063,-161.38256954,0.00012265,2]
[339224791,1727374233072,-193.783932,0.00012278,2]
[339224792,1727374233082,-150.0,0.00012278,2]
[339224793,1727374233092,-161.38256954,0.00012278,2]
[339224794,1727374233101,-161.38256954,0.00012291,2]
[339224795,1727374233111,-161.38256954,0.00012304,2]
[339224796,1727374233120,-150.0,0.00012308,2]
[339224797,1727374233129,-161.38256954,0.00012317,2]
[339224798,1727374233139,-160.868264,0.00012328,2]
[339224799,1727374233149,-161.38256954,0.0001233,2]
[339224800,1727374233159,-150.0,0.00012338,2]
[339224801,1727374233168,-161.38256954,0.00012343,2]
[339224802,1727374233178,-161.38256954,0.00012356,2]
[339224803,1727374233187,-150.0,0.00012368,2]
[339224804,1727374233196,-161.38256954,0.00012369,2]
[339224805,1727374233206,-161.38256954,0.00012382,2]
[339224806,1727374233215,-161.38256954,0.00012395,2]
[339224807,1727374233225,-150.0,0.00012398,2]
[339224808,1727374233235,-161.38256954,0.00012408,2]
[339224809,1727374233244,-161.38256954,0.00012421,2]
[339224810,1727374233254,-150.0,0.00012428,2]
[339224811,1727374233263,-193.783932,0.00012429,2]
[339224812,1727374233272,-161.38256954,0.00012434,2]
[339224813,1727374233281,-300.083,0.00012441,2]
[339224814,1727374233291,-1080.0,0.00012441,2]
[339224815,1727374233300,-161.38256954,0.00012447,2]
[339224816,1727374233488,-150.0,0.00012457,2]
[339224817,1727374233499,-161.38256954,0.0001246,2]
[339224818,1727374233509,-161.38256954,0.00012474,2]
[339224819,1727374233519,-161.38256954,0.00012487,2]
[339224820,1727374233528,-150.0,0.00012487,2]
[339224821,1727374233537,-1221.3552,0.00012499,2]
[339224822,1727374233547,-161.38256954,0.000125,2]
[339224823,1727374233557,-573.0815051,0.000125,2]
[339224824,1727374233566,-161.38256954,0.00012513,2]
[339224825,1727374233576,-150.0,0.00012517,2]
[339224826,1727374233586,-161.38256954,0.00012526,2]
[339224827,1727374233596,-160.868264,0.0001253,2]
[339224828,1727374233606,-573.0815051,0.00012533,2]
[339224829,1727374233620,-161.38256954,0.00012539,2]
[339224830,1727374233631,-150.0,0.00012547,2]
[339224831,1727374233641,-161.38256954,0.00012552,2]
[339224832,1727374233655,-161.38256954,0.00012565,2]
[339224833,1727374233665,-573.0815051,0.00012567,2]
[339224834,1727374233675,-150.0,0.00012577,2]
[339224835,1727374233685,-161.38256954,0.00012578,2]
[339224836,1727374233695,-193.783932,0.00012581,2]
[339224837,1727374233705,-255.0,0.00012588,2]
[339224838,1727374233715,-161.38256954,0.00012591,2]
[339224839,1727374233724,-38573.48187039,0.00012599,2]
[339224840,1727374233736,-2423.19949662,0.00012599,2]
[339224841,1727374233747,-1354.61142599,0.00012599,2]
[339224842,1727374233767,-1150.95,0.00012599,2]
[339224843,1727374233778,-4592.22575356,0.00012599,2]
[339224844,1727374233790,-563.10986677,0.00012599,2]
[339224845,1727374233810,-1303.27384699,0.00012599,2]
[339224853,1727374238561,-256.885,0.00012599,2]
[339224854,1727374238574,-29927.094,0.00012599,2]
[339224855,1727374238585,-678.4516811,0.00012599,2]
[339224856,1727374238753,-760.44450057,0.00012599,2]
[339224859,1727374240133,-1199.418278,0.00012599,2]
[339224860,1727374240160,-132562.95011244,0.00012599,2]
[339224861,1727374240172,-51858.8106,0.000126,2]
[339224862,1727374240181,-573.0815051,0.000126,2]
[339224863,1727374240192,-161.38256954,0.00012604,2]
[339224864,1727374240201,-150.0,0.00012607,2]
[339224865,1727374240210,-161.38256954,0.00012617,2]
[339224866,1727374240220,-161.38256954,0.0001263,2]
[339224867,1727374240229,-573.0815051,0.00012633,2]
[339224868,1727374240239,-150.0,0.00012637,2]
[339224869,1727374240248,-161.38256954,0.00012643,2]
[339224870,1727374240257,-161.38256954,0.00012656,2]
[339224871,1727374240267,-420.0,0.00012657,2]
[339224872,1727374240277,-573.0815051,0.00012667,2]
[339224873,1727374240287,-150.0,0.00012667,2]
[339224874,1727374240296,-161.38256954,0.00012669,2]
[339224875,1727374240305,-161.38256954,0.00012682,2]
[339224876,1727374240315,-161.38256954,0.00012695,2]
[339224877,1727374240324,-150.0,0.00012697,2]
[339224878,1727374240334,-4991.1357,0.000127,2]
[339224879,1727374240343,-573.0815051,0.000127,2]
[339224880,1727374240353,-161.38256954,0.00012708,2]
[339224881,1727374240363,-161.38256954,0.00012721,2]
[339224883,1727374240373,-150.0,0.00012727,2]
[339224885,1727374240382,-160.868264,0.00012732,2]
[339224887,1727374240392,-193.783932,0.00012732,2]
[339224889,1727374240408,-573.0815051,0.00012733,2]
[339224891,1727374240421,-161.38256954,0.00012734,2]
[339224893,1727374240430,-192.808,0.00012734,2]
[339224895,1727374240440,-161.38256954,0.00012747,2]
[339224897,1727374240450,-153.91,0.00012755,2]
[339224899,1727374240460,-150.0,0.00012757,2]
[339224901,1727374240469,-161.38256954,0.0001276,2]
[339224903,1727374240479,-573.0815051,0.00012767,2]
[339224905,1727374240489,-36739.0,0.00012771,2]
[339224907,1727374240500,-152.0,0.00012771,3]
[339224908,1727374240509,-161.38256954,0.00012773,2]
[339224909,1727374240519,-423.939,0.00012773,2]
[339224910,1727374240529,-161.38256954,0.00012786,2]
[339224911,1727374240539,-150.0,0.00012787,2]
[339224912,1727374240549,-500.0,0.00012797,2]
[339224913,1727374240558,-7500.0,0.00012799,2]
[339224914,1727374240568,-161.38256954,0.00012799,2]
[339224915,1727374240579,-10230.4115,0.00012799,2]
[339224916,1727374240589,-1008.4047,0.000128,2]
[339224917,1727374240599,-68989.0,0.000128,2]
[339224918,1727374240608,-161.38256954,0.00012812,2]
[339224919,1727374240620,-500.0,0.00012812,2]
[339224920,1727374240630,-150.0,0.00012817,2]
[339224921,1727374240639,-500.0,0.00012821,2]
[339224922,1727374240649,-161.38256954,0.00012825,2]
[339224923,1727374240659,-500.0,0.0001283,2]
[339224925,1727374240670,-1000.0,0.0001283,2]
[339224927,1727374240680,-150.0,0.00012836,2]
[339224929,1727374240690,-161.38256954,0.00012838,2]
[339224931,1727374240700,-500.0,0.00012838,2]
[339224933,1727374240710,-150.0,0.00012847,2]
[339224935,1727374240720,-500.0,0.00012847,2]
[339224937,1727374240730,-500.0,0.00012847,2]
[339224939,1727374240739,-161.38256954,0.00012851,2]
[339224941,1727374240749,-500.0,0.00012856,2]
[339224943,1727374240759,-500.0,0.00012856,2]
[339224945,1727374240769,-161.38256954,0.00012864,2]
[339224947,1727374240779,-500.0,0.00012865,2]
[339224949,1727374240789,-500.0,0.00012865,2]
[339224951,1727374240798,-500.0,0.00012874,2]
[339224953,1727374240808,-500.0,0.00012874,2]
[339224955,1727374240817,-161.38256954,0.00012877,2]
[339224957,1727374240827,-150.0,0.00012877,2]
[339224959,1727374240837,-500.0,0.00012882,2]
[339224961,1727374240846,-500.0,0.00012882,2]
[339224962,1727374240856,-500.0,0.00012891,2]
[339224964,1727374240865,-500.0,0.00012891,2]
[339224965,1727374240875,-50021.43294295,0.00012899,3]
[339224969,1727374240901,-468.87999999,0.00012899,3]
[339225191,1727374243088,-150.0,0.00012797,2]
[339225193,1727374243098,-573.0815051,0.000128,2]
[339225195,1727374243107,-538.23264366,0.00012899,3]
[339225223,1727374243334,-9001.87014775,0.00012899,3]
[339225234,1727374243431,-292.35005528,0.00012899,3]
[339225259,1727374246164,-250.0,0.0001202,2]
[339225260,1727374246173,-248.62,0.00012899,3]
[339225261,1727374246185,-3559.9489424,0.00012899,3]
[339225262,1727374246199,-69551.6223623,0.00012899,3]
[339225263,1727374246331,-472.15550848,0.00012899,3]
[339225272,1727374501736,800.0,0.00010068,2]
[339225273,1727374514154,150.0,0.0001389,30]
[339225274,1727374566311,263.45,9.967e-05,2]
[339225275,1727374775848,153.83,0.000142,31]
[339225276,1727374775888,153.83,0.000142,31]
[339225277,1727374775931,153.83,0.000142,31]
[339225278,1727374775995,153.83,0.000142,31]
[339225279,1727374776051,153.83,0.000142,31]
[339225280,1727374776107,153.83,0.000142,31]
[339225281,1727374776168,153.83,0.000142,31]
[339225282,1727375096665,150.0,0.0001389,30]
[339225283,1727375150323,157.43,0.00010959,2]
[339225284,1727375166698,-150.0,0.00015718,120]
[339225285,1727375166722,-841.37107621,0.00015718,120]
[339225291,1727375382593,153.84,0.000142,31]
[339225292,1727375382650,153.84,0.000142,31]
[339225293,1727375382730,153.84,0.000142,31]
[339225294,1727375382793,153.84,0.000142,31]
[339225295,1727375382841,153.84,0.000142,31]
[339225296,1727375382897,153.84,0.000142,31]
[339225297,1727375382959,153.84,0.000142,31]
[339225322,1727375432433,-300.0,0.00011164,2]
[339225323,1727375432445,-200.0,0.00011164,2]
[339225324,1727375432454,-500.0,0.00011164,2]
[339225325,1727375432464,-800.0,0.00011438,2]
[339225326,1727375432474,-250.0,0.00011463,2]
[339225327,1727375432483,-300.0,0.00011517,2]
[339225328,1727375432492,-1501.56,0.00011518,2]
[339225329,1727375432502,-4268.51221708,0.00011518,2]
[339225330,1727375432513,-6423.88203264,0.00011518,2]
[339225331,1727375432531,-193.89273681,0.00011518,2]
[339225332,1727375432541,-94.76843319,0.00011549,2]
[339225333,1727375432687,-447.78153083,0.00011549,2]
[339225351,1727375438553,-257.45003598,0.00011549,2]
[339225352,1727375438563,-175.88,0.00011601,2]
[339225353,1727375438572,-897.42,0.00011646,2]
[339225354,1727375438581,-562.43,0.00011692,2]
[339225355,1727375438590,-250.0,0.00011695,2]
[339225356,1727375438599,-6127.57,0.00011714,2]
[339225357,1727375438609,-1000.0,0.00011847,2]
[339225358,1727375438618,-179.35,0.00011885,2]
[339225359,1727375438628,-175.99,0.00011885,2]
[339225360,1727375438638,-220.64,0.00011885,2]
[339225361,1727375438648,-150.0,0.00011885,2]
[339225362,1727375438657,-1448.45,0.00011885,2]
[339225363,1727375438667,-1872.78,0.00011885,2]
[339225364,1727375438678,-1271.8256352,0.00011988,2]
[339225365,1727375438688,-263.45,0.00012231,2]
[339225366,1727375438697,-4105.45578883,0.00012499,2]
[339225367,1727375438708,-11037.79631117,0.00012499,2]
[339225368,1727375438718,-13262.331,0.00012499,2]
[339225369,1727375438727,-500.0,0.00012534,2]
[339225370,1727375438736,-183.581,0.00012628,2]
[339225371,1727375438932,-442.647,0.00012633,2]
[339225372,1727375438946,-420.0,0.00012649,2]
[339225373,1727375438956,-180.0,0.00012699,2]
[339225374,1727375438966,-5000.0,0.000127,2]
[339225375,1727375438977,-150.0,0.00012776,2]
[339225376,1727375438987,-980.17405002,0.00012782,2]
[339225377,1727375438997,-500.0,0.00012788,2]
[339225378,1727375439007,-200.0,0.00012788,2]
[339225379,1727375439017,-2703.8681,0.000128,2]
[339225380,1727375439033,-255.67,0.000128,2]
[339225381,1727375439044,-1000.0,0.000128,2]
[339225382,1727375439057,-187.95,0.000128,2]
[339225383,1727375439066,-800.0,0.00012808,2]
[339225384,1727375439075,-32604.32286499,0.0001283,7]
[339225385,1727375439087,-511.67571096,0.0001283,7]
[339225386,1727375439099,-1632.705,0.0001283,7]
[339225387,1727375439145,-299.25,0.0001283,7]
[339225390,1727375440176,-3207.90707731,0.0001283,7]
[339225391,1727375440188,-26878.4358,0.0001283,7]
[339225392,1727375440198,-5794.33161275,0.0001283,7]
[339225393,1727375440212,-338.72725768,0.0001283,7]
[339225394,1727375440230,-1391.73850551,0.0001283,7]
[339225395,1727375440248,-292.036,0.0001283,7]
[339225396,1727375440259,-618.5738826,0.0001283,7]
[339225397,1727375440270,-18918.55938786,0.0001283,7]
[339225398,1727375440286,-707.12336694,0.0001283,7]
[339225399,1727375440297,-342.108,0.0001283,7]
[339225400,1727375440309,-1109.54057501,0.0001283,7]
[339225401,1727375440319,-298.31412405,0.0001283,7]
[339225402,1727375440330,-149500.52898591,0.0001283,7]
[339225403,1727375440340,-352.75909744,0.0001283,7]
[339225404,1727375440350,-807.70839073,0.0001283,7]
[339225405,1727375440363,-15607.50524251,0.0001283,7]
[339225406,1727375440375,-2961.95,0.0001283,7]
[339225407,1727375440417,-1067.39875399,0.0001283,7]
[339225408,1727375440429,-387.72733961,0.0001283,7]
[339225409,1727375440441,-4905.37844259,0.0001283,7]
[339225410,1727375440452,-8576.54159867,0.0001283,7]
[339225411,1727375440463,-527.39556223,0.0001283,7]
[339225536,1727375443307,-500.0,0.0001283,7]
[339225537,1727375443392,-103793.88430937,0.0001283,7]
[339225538,1727375443402,-150.0,0.00012844,2]
[339225539,1727375443411,-697.37470307,0.0001285,2]
[339225540,1727375443420,-150.64,0.00012889,2]
[339225541,1727375443429,-181.04378991,0.00012889,2]
[339225542,1727375443438,-1959.66317022,0.00012897,2]
[339225543,1727375443449,-174037.14708948,0.00012899,2]
[339225544,1727375443459,-16081.44871412,0.00012899,3]
[339225545,1727375443470,-10000.0,0.00012899,3]
[339225546,1727375443481,-511.13840494,0.00012899,3]
[339225547,1727375443493,-5461.62054529,0.00012899,3]
[339225548,1727375443562,-116589.96415768,0.00012899,3]
[339225549,1727375443572,-1000.0,0.00012899,2]
[339225550,1727375443581,-151.0,0.00012899,2]
[339225551,1727375443590,-264.17967695,0.00012899,2]
[339225552,1727375443600,-500.0,0.00012899,2]
[339225553,1727375443609,-189.39416145,0.00012899,2]
[339225554,1727375443618,-500.0,0.00012899,2]
[339225555,1727375443628,-351.80154214,0.00012899,2]
[339225556,1727375443637,-150.76986783,0.00012899,2]
[339225557,1727375443647,-2000.0,0.00012899,2]
[339225558,1727375443657,-200.0,0.00012899,2]
[339225559,1727375443666,-1113.13,0.00012899,2]
[339225560,1727375443675,-531.0,0.000129,2]
[339225561,1727375443684,-349.42986271,0.000129,2]
[339225562,1727375443694,-324263.33073115,0.000129,2]
[339225564,1727375446259,-624.09688597,0.000129,2]
[339225565,1727375446346,-214.65479575,0.00012799,2]
[339225566,1727375446355,-564.64460425,0.000129,2]
[339225567,1727375446498,-552.86,0.000129,2]
[339225568,1727375473755,250.28,0.00010101,2]
[339225569,1727375491318,700.0,0.00010068,2]
[339225570,1727375609117,800.0,0.00010068,2]
[339225571,1727375652863,150.0,0.0001389,30]
[339225572,1727375684410,156.38,0.00010959,2]
[339225573,1727375699170,500.0,0.00010068,2]
[339225574,1727375720525,800.0,0.00010068,2]
[339225575,1727375820177,500.0,0.00010068,2]
[339225583,1727375988515,153.86,0.000142,31]
[339225584,1727375988575,153.86,0.000142,31]
[339225585,1727375988636,153.86,0.000142,31]
[339225586,1727375988696,153.86,0.000142,31]
[339225587,1727375988752,153.86,0.000142,31]
[339225588,1727375988826,153.86,0.000142,31]
[339225589,1727375989053,153.86,0.000142,31]
[339225590,1727376004454,264.76,9.896e-05,2]
[339225652,1727376215962,240.41,0.00010959,2]
[339225802,1727376342613,150.0,0.0001389,30]
[339226740,1727376577988,266.65,9.743e-05,2]
[339226741,1727376593517,153.87,0.000142,31]
[339226742,1727376593581,153.87,0.000142,31]
[339226743,1727376593635,153.87,0.000142,31]
[339226744,1727376593698,153.87,0.000142,31]
[339226745,1727376593759,153.87,0.000142,31]
[339226746,1727376593816,153.87,0.000142,31]
[339226747,1727376593873,153.87,0.000142,31]
[339226748,1727376617255,1050.0,0.00011,2]
[339226763,1727376631470,-800.0,0.00011438,2]
[339226764,1727376631480,-500.0,0.00011438,2]
[339226765,1727376631490,-230.27365888,0.00011589,2]
[339226766,1727376631500,-150.0,0.00011589,2]
[339226767,1727376631509,-511.818,0.00011592,2]
[339226768,1727376631519,-250.0,0.00011621,2]
[339226769,1727376631529,-179.35,0.00011676,2]
[339226770,1727376631538,-300.0,0.00011738,2]
[339226771,1727376631548,-21042.68,0.00011739,2]
[339226772,1727376631557,-500.0,0.000118,2]
[339226773,1727376631568,-150.0,0.00011808,2]
[339226774,1727376631578,-250.0,0.00011836,2]
[339226775,1727376631587,-150.0,0.00011845,2]
[339226776,1727376631597,-227.27,0.00011845,2]
[339226777,1727376631607,-179.57,0.00011885,2]
[339226778,1727376631617,-1000.0,0.00011892,2]
[339226779,1727376631629,-451.96,0.00011894,2]
[339226780,1727376631639,-266.65,0.00012007,2]
[339226781,1727376631648,-158.159082,0.00012126,2]
[339226782,1727376631657,-183.58207797,0.00012697,2]
[339226783,1727376631667,-451.342,0.000127,2]
[339226784,1727376631676,-13878.4121,0.0001273,2]
[339226785,1727376631686,-150.0,0.00012747,2]
[339226786,1727376631696,-150.0,0.0001276,2]
[339226787,1727376631705,-150.0,0.00012766,2]
[339226788,1727376631716,-500.0,0.00012796,2]
[339226789,1727376631725,-500.0,0.00012797,2]
[339226790,1727376631735,-200.0,0.00012797,2]
[339226791,1727376631744,-3612.2717,0.000128,2]
[339226792,1727376631754,-4899.9963,0.000128,2]
[339226793,1727376631763,-204.53,0.000128,2]
[339226794,1727376631772,-1174.0,0.000128,2]
[339226795,1727376631782,-429.30959146,0.000128,2]
[339226796,1727376631792,-800.0,0.00012808,2]
[339226797,1727376631802,-500.0,0.00012808,2]
[339226799,1727376631812,-150.0,0.00012811,2]
[339226801,1727376631821,-150.0,0.0001286,2]
[339226803,1727376631831,-5965.97498124,0.0001287,2]
[339226805,1727376631841,-51496.35425439,0.0001289,2]
[339226808,1727376631857,-707.64335939,0.0001289,2]
[339226810,1727376631870,-1012.2128544,0.0001289,2]
[339226812,1727376631882,-459.0409261,0.0001289,2]
[339226814,1727376631894,-1500.0,0.0001289,2]
[339226818,1727376631918,-13940.47675511,0.0001289,2]
[339226820,1727376631930,-78266.39999999,0.0001289,2]
[339226875,1727376637688,-8253.31241445,0.0001289,2]
[339226876,1727376637700,-1818.34711936,0.0001289,2]
[339226877,1727376637711,-1753.86217904,0.0001289,2]
[339226878,1727376637723,-364.55288824,0.0001289,2]
[339226879,1727376637937,-1000.0,0.0001289,2]
[339226880,1727376638084,-1231.76374629,0.0001289,2]
[339226978,1727376639372,-730.32338476,0.0001289,2]
[339226990,1727376639463,-87465.71011848,0.0001289,2]
[339226992,1727376639473,-420.0,0.0001289,2]
[339226994,1727376639482,-160.0,0.00012899,2]
[339226996,1727376639491,-151.0,0.00012899,2]
[339226998,1727376639501,-1000.0,0.00012899,2]
[339227000,1727376639510,-1000.0,0.00012899,2]
[339227002,1727376639519,-1000.0,0.00012899,2]
[339227004,1727376639529,-2311.42939848,0.00012899,2]
[339227006,1727376639538,-778.6,0.00012899,2]
[339227008,1727376639547,-1066.75,0.00012899,2]
[339227010,1727376639556,-530.0,0.000129,2]
[339227012,1727376639566,-279.54389017,0.000129,2]
[339227014,1727376639575,-144620.21903327,0.000129,2]
[339227016,1727376639584,-127578.93352319,0.000129,2]
[339227019,1727376639605,-40435.81690446,0.000129,2]
[339227023,1727376639637,-834.30484756,0.000129,2]
[339227046,1727376639841,-1297.0,0.000129,2]
[339227048,1727376639854,-835.09497442,0.000129,2]
[339227050,1727376639866,-507.93802617,0.000129,2]
[339227300,1727376642540,-13442.43320789,0.000129,2]
[339227313,1727376642659,-2849.92039478,0.000129,2]
[339227316,1727376642670,-5659.71883478,0.000129,2]
[339227318,1727376642687,-22982.3562768,0.000129,2]
[339227327,1727376642802,-3782909.34118092,0.000129,2]
[339227328,1727376642814,-116260.0,0.000129,2]
[339227329,1727376642826,-127280.0,0.000129,2]
[339227441,1727376645579,-2067.77571188,0.000129,2]
[339227442,1727376645590,-547.51,0.000129,2]
[339227443,1727376645601,-3352.26928,0.000129,2]
[339227819,1727376680726,500.0,0.00010068,2]
[339227820,1727376705427,800.0,0.00010068,2]
[339227821,1727376878110,150.0,0.0001389,30]
[339227822,1727376888149,800.0,0.00010068,2]
[339227823,1727376896362,311.95,0.00010959,2]
[339227824,1727376934395,500.0,0.00010068,2]
[339227825,1727377197847,153.89,0.000142,31]
[339227826,1727377197906,153.89,0.000142,31]
[339227827,1727377197969,153.89,0.000142,31]
[339227828,1727377198028,153.89,0.000142,31]
[339227829,1727377198101,153.89,0.000142,31]
[339227830,1727377198334,153.89,0.000142,31]
[339227831,1727377198364,153.89,0.000142,31]
[339227832,1727377281239,270.63,0.00010008,2]
[339227833,1727377435790,150.0,0.0001389,30]
[339227834,1727377473023,150.0,9.908e-05,2]
[339227835,1727377801277,153.92,0.000142,31]
[339227836,1727377801317,153.92,0.000142,31]
[339227837,1727377801379,153.92,0.000142,31]
[339227838,1727377801425,153.92,0.000142,31]
[339227839,1727377801508,153.92,0.000142,31]
[339227840,1727377801560,153.92,0.000142,31]
[339227841,1727377801623,153.92,0.000142,31]
[339227845,1727377831717,-166.74,0.00011318,2]
[339227846,1727377831728,-183.00821368,0.00011338,2]
[339227847,1727377831737,-800.0,0.00011438,2]
[339227848,1727377831748,-500.0,0.00011438,2]
[339227849,1727377831757,-227.27,0.00011872,2]
[339227850,1727377831766,-179.57,0.0001191,2]
[339227851,1727377831776,-250.0,0.00011915,2]
[339227852,1727377831787,-250.0,0.00011924,2]
[339227853,1727377831797,-174.37,0.00011945,2]
[339227854,1727377831807,-286.14,0.00011945,2]
[339227855,1727377831816,-176.14,0.00011945,2]
[339227856,1727377831826,-544.22495521,0.00011963,2]
[339227857,1727377831850,-455.77504479,0.00011963,2]
[339227858,1727377831859,-484.69900618,0.0001202,2]
[339227859,1727377831872,-168.73099382,0.0001202,2]
[339227860,1727377831881,-270.63,0.00012272,2]
[339227861,1727377831891,-1000.0,0.000126,2]
[339227862,1727377831900,-270.50948751,0.00012697,2]
[339227863,1727377831911,-244.39541249,0.00012697,2]
[339227864,1727377831922,-150.0,0.00012776,2]
[339227865,1727377831932,-500.0,0.00012797,2]
[339227866,1727377831942,-150.0,0.00012799,2]
[339227867,1727377831951,-300.0,0.00012799,2]
[339227868,1727377831961,-204.3001,0.000128,2]
[339227869,1727377831971,-2500.0,0.000128,2]
[339227870,1727377831980,-239.2152,0.000128,2]
[339227871,1727377831990,-14913.9166,0.000128,2]
[339227872,1727377831999,-361.074,0.000128,2]
[339227873,1727377832009,-9190.40361949,0.000128,2]
[339227874,1727377832019,-172.84876673,0.000128,2]
[339227875,1727377832028,-1858.07399291,0.000128,2]
[339227876,1727377832038,-1135.4443,0.000128,2]
[339227877,1727377832048,-163.63,0.000128,2]
[339227878,1727377832058,-342.28097937,0.000128,2]
[339227879,1727377832068,-800.0,0.00012808,2]
[339227880,1727377832077,-500.0,0.00012808,2]
[339227881,1727377832088,-151.33,0.0001289,2]
[339227882,1727377832097,-151.33,0.0001289,2]
[339227883,1727377832106,-267.30264487,0.0001289,2]
[339227884,1727377832115,-267.30264487,0.0001289,2]
[339227885,1727377832125,-267.30264487,0.0001289,2]
[339227886,1727377832134,-297.36950172,0.00012899,2]
[339227887,1727377832143,-1016.8073,0.00012899,2]
[339227888,1727377832153,-1000.0,0.00012899,2]
[339227889,1727377832162,-1022.3,0.00012899,2]
[339227890,1727377832171,-1000.0,0.00012899,2]
[339227891,1727377832180,-1959.66317022,0.00012899,2]
[339227892,1727377832190,-1000.0,0.000129,3]
[339227893,1727377832199,-186808.6948224,0.000129,2]
[339227894,1727377832211,-1451.24090158,0.000129,2]
[339227895,1727377832222,-5329.49624177,0.000129,2]
[339227903,1727377838183,-528.35096145,0.000128,2]
[339227904,1727377838193,-156.09076573,0.000129,2]
[339227905,1727377838206,-176.7411785,0.000129,2]
[339227906,1727377838216,-78.79627855,0.000129,2]
[339227907,1727377838249,-1500.0,0.000129,2]
[339227917,1727377839691,-771.6567558,0.000129,2]
[339227918,1727377839712,-407.64403031,0.000129,2]
[339227919,1727377839776,-150.0,0.00012821,2]
[339227920,1727377839789,-150.0,0.00012841,2]
[339227921,1727377839803,-28113.12954961,0.000129,2]
[339227922,1727377839919,-6254.0,0.000129,2]
[339227923,1727377839936,-1505.24745236,0.000129,2]
[339228046,1727377842786,-1250.0,0.000129,2]
[339228048,1727377842922,-720.70825157,0.000129,2]
[339228054,1727377845678,-174665.40596594,0.000129,2]
[339228055,1727377845688,-367738.11444225,0.000129,2]
[339228057,1727377872429,600.0,0.00010068,2]